[Event "*** SCC Grand Prix: Titled Tuesday Blitz"]
[Site "Chess.com"]
[Date "2020.09.29"]
[Round "5"]
[White "Tooweak2slow03"]
[Black "mishanick"]
[Result "1/2-1/2"]
[WhiteElo "2810"]
[BlackElo "3000"]
[TimeControl "180+1"]
[EndTime "10:56:08 PDT"]
[Termination "Game drawn - insufficient material"]

1. e4 {[%clk 0:03:00.9]} 1... c5 {[%clk 0:02:58.8]} 2. Nf3 {[%clk 0:03:01.3]}
2... d6 {[%clk 0:02:59.2]} 3. d4 {[%clk 0:03:00.7]} 3... cxd4 {[%clk 0:03:00.1]}
4. Nxd4 {[%clk 0:03:01.3]} 4... Nf6 {[%clk 0:03:00.8]} 5. Nc3 {[%clk 0:03:01.8]}
5... a6 {[%clk 0:03:01.5]} 6. a3 {[%clk 0:03:02.4]} 6... e5 {[%clk 0:03:01.3]}
7. Nf5 {[%clk 0:03:02.7]} 7... d5 {[%clk 0:03:01.8]} 8. Bg5 {[%clk 0:03:01.5]}
8... d4 {[%clk 0:03:02.2]} 9. Bxf6 {[%clk 0:03:01.2]} 9... Qxf6 {[%clk
0:03:03.1]} 10. Nd5 {[%clk 0:03:01]} 10... Qc6 {[%clk 0:03:03.7]} 11. c4 {[%clk
0:02:58.8]} 11... g6 {[%clk 0:03:03.8]} 12. Nxd4 {[%clk 0:02:57.7]} 12... exd4
{[%clk 0:03:04.7]} 13. Qxd4 {[%clk 0:02:58.3]} 13... f6 {[%clk 0:03:05.1]} 14.
O-O-O {[%clk 0:02:22]} 14... Be6 {[%clk 0:02:52.6]} 15. f4 {[%clk 0:01:48.1]}
15... Nd7 {[%clk 0:02:48]} 16. Kb1 {[%clk 0:01:45.9]} 16... Bxd5 {[%clk
0:02:35.5]} 17. exd5 {[%clk 0:01:44.1]} 17... Qb6 {[%clk 0:02:33.1]} 18. Qc3
{[%clk 0:01:40.6]} 18... Bc5 {[%clk 0:02:31.7]} 19. Re1+ {[%clk 0:01:38.9]}
19... Kd8 {[%clk 0:02:31.6]} 20. Re6 {[%clk 0:01:34.1]} 20... Qc7 {[%clk
0:02:23.4]} 21. Rxf6 {[%clk 0:01:30.8]} 21... Re8 {[%clk 0:02:13.1]} 22. Re6
{[%clk 0:01:27.2]} 22... Qxf4 {[%clk 0:02:06.5]} 23. g3 {[%clk 0:01:27.3]} 23...
Qd4 {[%clk 0:02:00.3]} 24. Qb3 {[%clk 0:01:16.9]} 24... Kc7 {[%clk 0:01:56.7]}
25. Bg2 {[%clk 0:01:14.7]} 25... Rxe6 {[%clk 0:01:12.8]} 26. dxe6 {[%clk
0:01:15.6]} 26... Nb6 {[%clk 0:01:13.4]} 27. Rd1 {[%clk 0:01:13]} 27... Qg7
{[%clk 0:00:50.7]} 28. Rd7+ {[%clk 0:01:06.2]} 28... Nxd7 {[%clk 0:00:41.6]} 29.
Qxb7+ {[%clk 0:01:05.9]} 29... Kd6 {[%clk 0:00:40.5]} 30. Qxa8 {[%clk
0:01:02.3]} 30... Kxe6 {[%clk 0:00:22.6]} 31. Qxa6+ {[%clk 0:00:47]} 31... Ke7
{[%clk 0:00:22.4]} 32. Bh3 {[%clk 0:00:42.5]} 32... Qe5 {[%clk 0:00:16.5]} 33.
Bxd7 {[%clk 0:00:36.3]} 33... Kxd7 {[%clk 0:00:17.4]} 34. Qb7+ {[%clk
0:00:33.6]} 34... Ke6 {[%clk 0:00:17.2]} 35. Qxh7 {[%clk 0:00:31.7]} 35... Qe4+
{[%clk 0:00:17.1]} 36. Ka1 {[%clk 0:00:30.8]} 36... Bd4 {[%clk 0:00:14.2]} 37.
Qg8+ {[%clk 0:00:26.8]} 37... Ke7 {[%clk 0:00:14.3]} 38. Qd5 {[%clk 0:00:23.3]}
38... Qxd5 {[%clk 0:00:09.3]} 39. cxd5 {[%clk 0:00:24.2]} 39... Kd6 {[%clk
0:00:09.8]} 40. Ka2 {[%clk 0:00:22.9]} 40... Kxd5 {[%clk 0:00:09.3]} 41. b4
{[%clk 0:00:21.5]} 41... Kc4 {[%clk 0:00:09.1]} 42. h3 {[%clk 0:00:18.6]} 42...
Be5 {[%clk 0:00:08]} 43. g4 {[%clk 0:00:17.3]} 43... g5 {[%clk 0:00:06.3]} 44.
Kb1 {[%clk 0:00:15.3]} 44... Kd4 {[%clk 0:00:03.7]} 45. Kc2 {[%clk 0:00:12.1]}
45... Ke3 {[%clk 0:00:03.9]} 46. a4 {[%clk 0:00:11.1]} 46... Kf3 {[%clk
0:00:04]} 47. Kd3 {[%clk 0:00:09]} 47... Bd6 {[%clk 0:00:02.2]} 48. b5 {[%clk
0:00:07.5]} 48... Bc7 {[%clk 0:00:02.8]} 49. Kc4 {[%clk 0:00:05.6]} 49... Kg3
{[%clk 0:00:02.8]} 50. Kc5 {[%clk 0:00:04.4]} 50... Kxh3 {[%clk 0:00:03.4]} 51.
Kc6 {[%clk 0:00:04.9]} 51... Bh2 {[%clk 0:00:02.2]} 52. b6 {[%clk 0:00:05.4]}
52... Kxg4 {[%clk 0:00:02.7]} 53. b7 {[%clk 0:00:05.8]} 53... Kf5 {[%clk
0:00:02.8]} 54. a5 {[%clk 0:00:06.7]} 54... Bb8 {[%clk 0:00:03.1]} 55. a6 {[%clk
0:00:07.6]} 55... g4 {[%clk 0:00:03.6]} 56. Kb6 {[%clk 0:00:08.2]} 56... g3
{[%clk 0:00:04.1]} 57. a7 {[%clk 0:00:09.1]} 57... Bxa7+ {[%clk 0:00:04.6]} 58.
Kxa7 {[%clk 0:00:10]} 58... g2 {[%clk 0:00:05.4]} 59. b8=Q {[%clk 0:00:10.9]}
59... g1=Q+ {[%clk 0:00:06.3]} 60. Qb6 {[%clk 0:00:11.3]} 60... Qxb6+ {[%clk
0:00:06.6]} 61. Kxb6 {[%clk 0:00:11.7]} 1/2-1/2

[Event "*** SCC Grand Prix: Titled Tuesday Blitz"]
[Site "Chess.com"]
[Date "2020.09.29"]
[Round "5"]
[White "mamey78"]
[Black "azikom"]
[Result "1/2-1/2"]
[WhiteElo "2412"]
[BlackElo "2632"]
[TimeControl "180+1"]
[EndTime "10:56:10 PDT"]
[Termination "Game drawn by repetition"]

1. e4 {[%clk 0:02:59.6]} 1... e5 {[%clk 0:02:58.2]} 2. Nf3 {[%clk 0:02:59.5]}
2... Nc6 {[%clk 0:02:58.7]} 3. Bb5 {[%clk 0:02:59.4]} 3... Nf6 {[%clk
0:02:57.1]} 4. d4 {[%clk 0:02:58.5]} 4... exd4 {[%clk 0:02:48.6]} 5. O-O {[%clk
0:02:58.3]} 5... Be7 {[%clk 0:02:34.6]} 6. e5 {[%clk 0:02:52.3]} 6... Ne4 {[%clk
0:02:34]} 7. Nxd4 {[%clk 0:02:47.2]} 7... O-O {[%clk 0:02:30.1]} 8. Nf5 {[%clk
0:02:41.9]} 8... d5 {[%clk 0:02:15.1]} 9. exd6 {[%clk 0:02:09.9]} 9... Nxd6
{[%clk 0:02:14.5]} 10. Nxe7+ {[%clk 0:02:04.2]} 10... Qxe7 {[%clk 0:02:13.9]}
11. Bd3 {[%clk 0:01:57.2]} 11... Bf5 {[%clk 0:02:13.3]} 12. Nc3 {[%clk
0:01:55.4]} 12... Bxd3 {[%clk 0:02:10.9]} 13. Qxd3 {[%clk 0:01:54.4]} 13... Nb4
{[%clk 0:02:05]} 14. Qd1 {[%clk 0:01:25.5]} 14... Rad8 {[%clk 0:02:04]} 15. Bf4
{[%clk 0:01:21.7]} 15... Nc4 {[%clk 0:01:55.9]} 16. Qc1 {[%clk 0:00:55.4]} 16...
Qc5 {[%clk 0:01:48.1]} 17. a3 {[%clk 0:00:53.6]} 17... Nd5 {[%clk 0:01:46.9]}
18. Nxd5 {[%clk 0:00:52.8]} 18... Rxd5 {[%clk 0:01:46.6]} 19. b3 {[%clk
0:00:51.6]} 19... Ne5 {[%clk 0:01:41.5]} 20. c4 {[%clk 0:00:43.5]} 20... Rd7
{[%clk 0:01:35]} 21. Qe3 {[%clk 0:00:40]} 21... Qxe3 {[%clk 0:01:34.2]} 22. Bxe3
{[%clk 0:00:40.9]} 22... Ng4 {[%clk 0:01:32.9]} 23. Bc5 {[%clk 0:00:37.9]} 23...
Re8 {[%clk 0:01:29.6]} 24. h3 {[%clk 0:00:37.4]} 24... Nf6 {[%clk 0:01:24.6]}
25. Rad1 {[%clk 0:00:37.3]} 25... b6 {[%clk 0:01:22.6]} 26. Be3 {[%clk
0:00:35.9]} 26... Red8 {[%clk 0:01:19.1]} 27. Rxd7 {[%clk 0:00:36.2]} 27... Rxd7
{[%clk 0:01:19.2]} 28. Rc1 {[%clk 0:00:37.1]} 28... Rd3 {[%clk 0:01:18.4]} 29.
c5 {[%clk 0:00:36.5]} 29... Nd5 {[%clk 0:01:14.3]} 30. cxb6 {[%clk 0:00:35.9]}
30... axb6 {[%clk 0:01:14.3]} 31. Rb1 {[%clk 0:00:31.1]} 31... Nxe3 {[%clk
0:01:07.5]} 32. fxe3 {[%clk 0:00:30.8]} 32... Rxe3 {[%clk 0:01:07.9]} 33. Kf2
{[%clk 0:00:31.3]} 33... Rc3 {[%clk 0:01:06.8]} 34. a4 {[%clk 0:00:31.2]} 34...
Rc2+ {[%clk 0:00:58.9]} 35. Kf3 {[%clk 0:00:30.8]} 35... h5 {[%clk 0:00:58.5]}
36. g4 {[%clk 0:00:17.7]} 36... h4 {[%clk 0:00:57.8]} 37. Ke4 {[%clk 0:00:15.6]}
37... Kh7 {[%clk 0:00:50.8]} 38. Kd5 {[%clk 0:00:15.1]} 38... Rc3 {[%clk
0:00:42.5]} 39. b4 {[%clk 0:00:11.4]} 39... Rxh3 {[%clk 0:00:41.8]} 40. Ra1
{[%clk 0:00:11.1]} 40... Rb3 {[%clk 0:00:31.5]} 41. a5 {[%clk 0:00:12]} 41...
bxa5 {[%clk 0:00:31.4]} 42. bxa5 {[%clk 0:00:12.9]} 42... Kg6 {[%clk 0:00:23.1]}
43. a6 {[%clk 0:00:13]} 43... Rb8 {[%clk 0:00:23]} 44. a7 {[%clk 0:00:12.3]}
44... Ra8 {[%clk 0:00:23.4]} 45. Kc6 {[%clk 0:00:13.2]} 45... Kg5 {[%clk
0:00:22]} 46. Kb7 {[%clk 0:00:13.6]} 46... Rxa7+ {[%clk 0:00:20]} 47. Kxa7
{[%clk 0:00:14.3]} 47... Kxg4 {[%clk 0:00:19.5]} 48. Rg1+ {[%clk 0:00:14.5]}
48... Kf3 {[%clk 0:00:18.7]} 49. Rxg7 {[%clk 0:00:15.4]} 49... f5 {[%clk
0:00:19.1]} 50. Rh7 {[%clk 0:00:13]} 50... Kg3 {[%clk 0:00:18.6]} 51. Rg7+
{[%clk 0:00:13.2]} 51... Kf4 {[%clk 0:00:18.7]} 52. Rh7 {[%clk 0:00:12.5]} 52...
Kg5 {[%clk 0:00:18.1]} 53. Rg7+ {[%clk 0:00:12.7]} 53... Kf4 {[%clk 0:00:18.2]}
54. Rh7 {[%clk 0:00:12.6]} 54... Kg3 {[%clk 0:00:17.8]} 55. Rg7+ {[%clk
0:00:12.7]} 55... Kf3 {[%clk 0:00:17.7]} 56. Rh7 {[%clk 0:00:12.6]} 56... Kg3
{[%clk 0:00:17.7]} 1/2-1/2

[Event "*** SCC Grand Prix: Titled Tuesday Blitz"]
[Site "Chess.com"]
[Date "2020.09.29"]
[Round "5"]
[White "salomez"]
[Black "lucachess49"]
[Result "1-0"]
[WhiteElo "2241"]
[BlackElo "2380"]
[TimeControl "180+1"]
[EndTime "10:56:10 PDT"]
[Termination "salomez won on time"]

1. d4 {[%clk 0:03:00.6]} 1... Nf6 {[%clk 0:02:50.5]} 2. Bf4 {[%clk 0:02:59.8]}
2... e6 {[%clk 0:02:50.3]} 3. Nf3 {[%clk 0:02:49.6]} 3... b6 {[%clk 0:02:50]} 4.
e3 {[%clk 0:02:46]} 4... Bb7 {[%clk 0:02:50]} 5. Be2 {[%clk 0:02:46]} 5... d6
{[%clk 0:02:49.7]} 6. O-O {[%clk 0:02:46.5]} 6... Nbd7 {[%clk 0:02:50.1]} 7. c4
{[%clk 0:02:46.3]} 7... g6 {[%clk 0:02:50]} 8. Nc3 {[%clk 0:02:46.5]} 8... Bg7
{[%clk 0:02:50]} 9. h3 {[%clk 0:02:45.9]} 9... O-O {[%clk 0:02:50.2]} 10. Qc2
{[%clk 0:02:43.6]} 10... Qe7 {[%clk 0:02:49.4]} 11. Bh2 {[%clk 0:02:39.2]} 11...
Nh5 {[%clk 0:02:38.3]} 12. b4 {[%clk 0:02:33.4]} 12... f5 {[%clk 0:02:36.2]} 13.
Rac1 {[%clk 0:02:25.8]} 13... Nhf6 {[%clk 0:02:34.6]} 14. c5 {[%clk 0:02:19.6]}
14... bxc5 {[%clk 0:02:27.7]} 15. bxc5 {[%clk 0:02:10.7]} 15... dxc5 {[%clk
0:02:18]} 16. Nb5 {[%clk 0:02:08.8]} 16... Be4 {[%clk 0:02:00.7]} 17. Qd2 {[%clk
0:01:58.2]} 17... c6 {[%clk 0:01:40]} 18. Bd6 {[%clk 0:01:54.7]} 18... Qd8
{[%clk 0:01:22.3]} 19. Bxf8 {[%clk 0:01:55.6]} 19... Nxf8 {[%clk 0:01:10.1]} 20.
Nc3 {[%clk 0:01:46.8]} 20... cxd4 {[%clk 0:00:59.5]} 21. Qxd4 {[%clk 0:01:42.8]}
21... Nd5 {[%clk 0:00:53.4]} 22. Qc4 {[%clk 0:01:32.9]} 22... Nxc3 {[%clk
0:00:52.1]} 23. Rxc3 {[%clk 0:01:30.6]} 23... Bxc3 {[%clk 0:00:51.7]} 24. Qxc3
{[%clk 0:01:30.3]} 24... Qe7 {[%clk 0:00:47]} 25. Rc1 {[%clk 0:01:23.7]} 25...
Rc8 {[%clk 0:00:39.3]} 26. Ne5 {[%clk 0:01:07.9]} 26... Nd7 {[%clk 0:00:31.5]}
27. Bc4 {[%clk 0:01:04.5]} 27... Nxe5 {[%clk 0:00:22.4]} 28. Qxe5 {[%clk
0:01:03.1]} 28... Kf7 {[%clk 0:00:23.3]} 29. Rd1 {[%clk 0:00:33.1]} 29... Bd5
{[%clk 0:00:21.3]} 30. Rc1 {[%clk 0:00:29.4]} 30... Qf6 {[%clk 0:00:18.3]} 31.
Qf4 {[%clk 0:00:20.7]} 31... Qb2 {[%clk 0:00:13.8]} 32. e4 {[%clk 0:00:20.5]}
32... Bxc4 {[%clk 0:00:10.6]} 33. Rxc4 {[%clk 0:00:17]} 33... Qxa2 {[%clk
0:00:08.5]} 34. exf5 {[%clk 0:00:16.8]} 34... exf5 {[%clk 0:00:08.6]} 35. Rc1
{[%clk 0:00:12.2]} 35... Qe6 {[%clk 0:00:07.7]} 36. Rd1 {[%clk 0:00:11.1]} 36...
c5 {[%clk 0:00:06.9]} 37. Rd6 {[%clk 0:00:10.7]} 37... Qe7 {[%clk 0:00:07]} 38.
Qd2 {[%clk 0:00:09.2]} 38... Rc7 {[%clk 0:00:07.1]} 39. Qd5+ {[%clk 0:00:09.5]}
39... Kg7 {[%clk 0:00:07.2]} 40. Rd8 {[%clk 0:00:08.7]} 40... c4 {[%clk
0:00:07]} 41. Rg8+ {[%clk 0:00:08.4]} 41... Kh6 {[%clk 0:00:07.5]} 42. Qd2+
{[%clk 0:00:07.5]} 42... Qg5 {[%clk 0:00:08]} 43. Qd6 {[%clk 0:00:05.3]} 43...
Qe7 {[%clk 0:00:06.5]} 44. Qf4+ {[%clk 0:00:04.6]} 44... Kh5 {[%clk 0:00:03.9]}
45. g4+ {[%clk 0:00:03.8]} 45... fxg4 {[%clk 0:00:03.2]} 46. hxg4+ {[%clk
0:00:03.8]} 46... Kh4 {[%clk 0:00:03.4]} 47. Qg3+ {[%clk 0:00:03.6]} 47... Kg5
{[%clk 0:00:03.1]} 48. f4+ {[%clk 0:00:03]} 48... Kf6 {[%clk 0:00:03.1]} 49. g5+
{[%clk 0:00:03.3]} 49... Kf7 {[%clk 0:00:02.6]} 50. Rh8 {[%clk 0:00:03.3]} 50...
Kg7 {[%clk 0:00:02.1]} 51. Qc3+ {[%clk 0:00:04.2]} 51... Kf7 {[%clk 0:00:01.7]}
52. Rxh7+ {[%clk 0:00:04.5]} 1-0

[Event "*** SCC Grand Prix: Titled Tuesday Blitz"]
[Site "Chess.com"]
[Date "2020.09.29"]
[Round "5"]
[White "szefru"]
[Black "Rubinstein_Akiba"]
[Result "1-0"]
[WhiteElo "2170"]
[BlackElo "2389"]
[TimeControl "180+1"]
[EndTime "10:56:15 PDT"]
[Termination "szefru won on time"]

1. e4 {[%clk 0:02:59.8]} 1... c5 {[%clk 0:02:59.3]} 2. Nf3 {[%clk 0:02:56.9]}
2... d6 {[%clk 0:02:57.3]} 3. d4 {[%clk 0:02:56]} 3... cxd4 {[%clk 0:02:58.2]}
4. Qxd4 {[%clk 0:02:56.8]} 4... a6 {[%clk 0:02:56.3]} 5. Nc3 {[%clk 0:02:55.6]}
5... Nf6 {[%clk 0:02:56.3]} 6. Bg5 {[%clk 0:02:55.4]} 6... Nc6 {[%clk
0:02:53.2]} 7. Qd2 {[%clk 0:02:55.2]} 7... e6 {[%clk 0:02:48.4]} 8. O-O-O {[%clk
0:02:50.7]} 8... Be7 {[%clk 0:02:46.4]} 9. h4 {[%clk 0:02:50.4]} 9... Qc7 {[%clk
0:02:40.3]} 10. Bf4 {[%clk 0:02:47.3]} 10... e5 {[%clk 0:02:34.9]} 11. Bg5
{[%clk 0:02:45.7]} 11... Be6 {[%clk 0:02:33.5]} 12. Bxf6 {[%clk 0:02:34.1]}
12... gxf6 {[%clk 0:02:27.5]} 13. Nd5 {[%clk 0:02:33.9]} 13... Bxd5 {[%clk
0:02:27.3]} 14. Qxd5 {[%clk 0:02:34.6]} 14... Rc8 {[%clk 0:02:16.7]} 15. Bc4
{[%clk 0:02:15.3]} 15... Rf8 {[%clk 0:01:54.6]} 16. Bb3 {[%clk 0:02:12.1]} 16...
b5 {[%clk 0:01:09.2]} 17. h5 {[%clk 0:02:04.9]} 17... Nd8 {[%clk 0:00:51.3]} 18.
Nh4 {[%clk 0:01:57.5]} 18... Ne6 {[%clk 0:00:42.4]} 19. Nf5 {[%clk 0:01:55.4]}
19... Kd7 {[%clk 0:00:25.6]} 20. Kb1 {[%clk 0:01:44.4]} 20... Rg8 {[%clk
0:00:19]} 21. g3 {[%clk 0:01:43.9]} 21... Rgf8 {[%clk 0:00:18.5]} 22. Nh6 {[%clk
0:01:38.5]} 22... Qc5 {[%clk 0:00:18.1]} 23. f3 {[%clk 0:01:22.1]} 23... Qxd5
{[%clk 0:00:16]} 24. Bxd5 {[%clk 0:01:18.2]} 24... Rc7 {[%clk 0:00:15.6]} 25.
Rhf1 {[%clk 0:01:15.7]} 25... Nd8 {[%clk 0:00:14.6]} 26. f4 {[%clk 0:01:14.2]}
26... Kc8 {[%clk 0:00:12.7]} 27. Nf5 {[%clk 0:01:10.5]} 27... a5 {[%clk
0:00:11]} 28. c3 {[%clk 0:01:09.1]} 28... Ne6 {[%clk 0:00:10.2]} 29. Bxe6+
{[%clk 0:01:07.1]} 29... fxe6 {[%clk 0:00:11.1]} 30. Nxd6+ {[%clk 0:01:07.4]}
30... Bxd6 {[%clk 0:00:11.5]} 31. Rxd6 {[%clk 0:01:08.3]} 31... Re8 {[%clk
0:00:09.7]} 32. Kc2 {[%clk 0:00:51.7]} 32... Rc4 {[%clk 0:00:08.7]} 33. Kd3
{[%clk 0:00:49.4]} 33... Rc7 {[%clk 0:00:09.2]} 34. Ke3 {[%clk 0:00:42.6]} 34...
Rd7 {[%clk 0:00:07.3]} 35. Rfd1 {[%clk 0:00:42.5]} 35... Red8 {[%clk 0:00:03.4]}
36. fxe5 {[%clk 0:00:38.4]} 36... fxe5 {[%clk 0:00:02.7]} 37. Rc6+ {[%clk
0:00:37.5]} 37... Kb7 {[%clk 0:00:03]} 38. Rxd7+ {[%clk 0:00:37.4]} 38... Rxd7
{[%clk 0:00:03.9]} 39. Rxe6 {[%clk 0:00:37.7]} 39... Rd1 {[%clk 0:00:03.7]} 40.
Rxe5 {[%clk 0:00:36.9]} 40... Re1+ {[%clk 0:00:04.1]} 41. Kf3 {[%clk 0:00:36.9]}
41... Kc6 {[%clk 0:00:03.8]} 42. Rd5 {[%clk 0:00:35.6]} 42... Rb1 {[%clk
0:00:04]} 43. Rd2 {[%clk 0:00:34.8]} 43... b4 {[%clk 0:00:03.5]} 44. cxb4 {[%clk
0:00:35]} 44... axb4 {[%clk 0:00:04.4]} 45. b3 {[%clk 0:00:35.3]} 45... Rf1+
{[%clk 0:00:03.3]} 46. Kg4 {[%clk 0:00:35.2]} 46... Rf7 {[%clk 0:00:03.7]} 47.
e5 {[%clk 0:00:33.3]} 47... Rg7+ {[%clk 0:00:03.2]} 48. Kf4 {[%clk 0:00:32.9]}
48... Rf7+ {[%clk 0:00:03.7]} 49. Ke4 {[%clk 0:00:33.3]} 49... Re7 {[%clk
0:00:03.6]} 50. Kf5 {[%clk 0:00:32.7]} 50... Rf7+ {[%clk 0:00:03.3]} 51. Ke6
{[%clk 0:00:33.2]} 51... Rf3 {[%clk 0:00:03.7]} 52. Rc2+ {[%clk 0:00:33.3]}
52... Kb5 {[%clk 0:00:03]} 53. g4 {[%clk 0:00:31.5]} 53... h6 {[%clk 0:00:01.4]}
54. Kd7 {[%clk 0:00:29.1]} 54... Rg3 {[%clk 0:00:01.8]} 55. e6 {[%clk
0:00:28.9]} 55... Rxg4 {[%clk 0:00:01.2]} 56. e7 {[%clk 0:00:29.1]} 56... Rd4+
{[%clk 0:00:01.6]} 57. Ke8 {[%clk 0:00:27.9]} 57... Re4 {[%clk 0:00:02.1]} 58.
Rf2 {[%clk 0:00:24.1]} 1-0

[Event "*** SCC Grand Prix: Titled Tuesday Blitz"]
[Site "Chess.com"]
[Date "2020.09.29"]
[Round "5"]
[White "belisarius64"]
[Black "chessfrendz"]
[Result "0-1"]
[WhiteElo "2676"]
[BlackElo "2354"]
[TimeControl "180+1"]
[EndTime "10:56:18 PDT"]
[Termination "chessfrendz won by resignation"]

1. e4 {[%clk 0:02:57.6]} 1... e6 {[%clk 0:02:48.8]} 2. d4 {[%clk 0:02:57.2]}
2... d5 {[%clk 0:02:48.6]} 3. Nc3 {[%clk 0:02:56.4]} 3... Nf6 {[%clk 0:02:46.7]}
4. Bg5 {[%clk 0:02:55.5]} 4... dxe4 {[%clk 0:02:44.9]} 5. Nxe4 {[%clk
0:02:55.3]} 5... Nbd7 {[%clk 0:02:40.9]} 6. Nf3 {[%clk 0:02:52.5]} 6... Be7
{[%clk 0:02:27.7]} 7. Nxf6+ {[%clk 0:02:51.4]} 7... Bxf6 {[%clk 0:02:25]} 8. Qd2
{[%clk 0:02:51.7]} 8... Bxg5 {[%clk 0:02:23.7]} 9. Nxg5 {[%clk 0:02:52.6]} 9...
h6 {[%clk 0:02:22]} 10. Nf3 {[%clk 0:02:52.3]} 10... O-O {[%clk 0:02:16.4]} 11.
O-O-O {[%clk 0:02:52.1]} 11... Qe7 {[%clk 0:02:06.3]} 12. Bc4 {[%clk 0:02:46.5]}
12... c5 {[%clk 0:02:04.9]} 13. d5 {[%clk 0:02:44.5]} 13... exd5 {[%clk
0:02:02]} 14. Rhe1 {[%clk 0:02:30.7]} 14... Qf6 {[%clk 0:02:01.3]} 15. Bxd5
{[%clk 0:02:26.2]} 15... Nb6 {[%clk 0:01:59.9]} 16. Ne5 {[%clk 0:02:04.3]} 16...
Nxd5 {[%clk 0:01:47.4]} 17. Qxd5 {[%clk 0:02:05.2]} 17... Qxf2 {[%clk
0:01:39.3]} 18. Ng6 {[%clk 0:01:26.6]} 18... Be6 {[%clk 0:01:20.6]} 19. Rxe6
{[%clk 0:01:21.1]} 19... fxe6 {[%clk 0:01:17.3]} 20. Qxe6+ {[%clk 0:01:21.7]}
20... Qf7 {[%clk 0:00:43.1]} 21. Nxf8 {[%clk 0:01:19.2]} 21... Rxf8 {[%clk
0:00:42.1]} 22. Qe5 {[%clk 0:00:53.9]} 22... Qxa2 {[%clk 0:00:36]} 23. Rd7
{[%clk 0:00:49.5]} 23... Rf7 {[%clk 0:00:24.2]} 24. Qe8+ {[%clk 0:00:44.7]}
24... Rf8 {[%clk 0:00:23.8]} 25. Qe5 {[%clk 0:00:35.5]} 25... Rf7 {[%clk
0:00:23.6]} 26. Rd8+ {[%clk 0:00:22.9]} 26... Kh7 {[%clk 0:00:18.3]} 27. Qe4+
{[%clk 0:00:22.8]} 27... g6 {[%clk 0:00:17.7]} 28. Qe8 {[%clk 0:00:19.7]} 28...
Qa1+ {[%clk 0:00:13.3]} 29. Kd2 {[%clk 0:00:18.9]} 29... Rf2+ {[%clk 0:00:09.2]}
30. Kc3 {[%clk 0:00:17.3]} 30... Qa5+ {[%clk 0:00:08]} 31. Kd3 {[%clk
0:00:03.9]} 31... Rd2+ {[%clk 0:00:05.1]} 32. Ke3 {[%clk 0:00:02.2]} 32... Qxd8
{[%clk 0:00:04.4]} 33. Qf7+ {[%clk 0:00:01.4]} 33... Kh8 {[%clk 0:00:04.4]} 34.
Qxg6 {[%clk 0:00:01.9]} 34... Qd4+ {[%clk 0:00:02.9]} 35. Kf3 {[%clk 0:00:02.4]}
35... Rf2+ {[%clk 0:00:02.8]} 36. Kg3 {[%clk 0:00:02.9]} 36... Qf4+ {[%clk
0:00:02.6]} 37. Kh3 {[%clk 0:00:03.5]} 37... Qf5+ {[%clk 0:00:03]} 38. Qxf5
{[%clk 0:00:04]} 38... Rxf5 {[%clk 0:00:03.5]} 39. Kg4 {[%clk 0:00:04.9]} 39...
Rf2 {[%clk 0:00:02.6]} 40. b4 {[%clk 0:00:04.4]} 40... Rxc2 {[%clk 0:00:03.5]}
41. bxc5 {[%clk 0:00:05.3]} 41... Rxc5 {[%clk 0:00:03]} 42. Kf4 {[%clk
0:00:06.2]} 42... a5 {[%clk 0:00:03.4]} 43. Ke4 {[%clk 0:00:07.1]} 43... a4
{[%clk 0:00:04.2]} 44. Kd4 {[%clk 0:00:08]} 44... Rc1 {[%clk 0:00:04.3]} 45. Kd3
{[%clk 0:00:08.3]} 45... a3 {[%clk 0:00:05.2]} 46. Kd2 {[%clk 0:00:09.2]} 46...
Rc6 {[%clk 0:00:05]} 47. Ke3 {[%clk 0:00:10.1]} 47... a2 {[%clk 0:00:05.6]} 48.
Kf4 {[%clk 0:00:11]} 48... a1=Q {[%clk 0:00:06.1]} 49. Kg4 {[%clk 0:00:11.9]}
49... Qd4+ {[%clk 0:00:06.4]} 50. Kh3 {[%clk 0:00:12.8]} 50... Rf6 {[%clk
0:00:06.1]} 51. g3 {[%clk 0:00:13.7]} 51... Qe3 {[%clk 0:00:05.9]} 52. Kh4
{[%clk 0:00:14.6]} 52... Qe4+ {[%clk 0:00:05.9]} 53. Kh3 {[%clk 0:00:15.5]}
53... Qf5+ {[%clk 0:00:05.6]} 54. Kh4 {[%clk 0:00:16.4]} 54... Re6 {[%clk
0:00:04.4]} 55. g4 {[%clk 0:00:16.1]} 55... Re4 {[%clk 0:00:05.3]} 56. h3 {[%clk
0:00:16]} 56... Qxg4+ {[%clk 0:00:05.9]} 57. hxg4 {[%clk 0:00:16.2]} 57... Kg7
{[%clk 0:00:06.3]} 58. Kh5 {[%clk 0:00:16.5]} 58... Kh7 {[%clk 0:00:06]} 59. Kh4
{[%clk 0:00:14]} 59... Kg6 {[%clk 0:00:06]} 60. Kg3 {[%clk 0:00:14]} 60... Kg5
{[%clk 0:00:06.4]} 61. Kf3 {[%clk 0:00:14.9]} 61... Rxg4 {[%clk 0:00:06.9]} 62.
Kf2 {[%clk 0:00:15]} 62... Rf4+ {[%clk 0:00:07.8]} 63. Ke3 {[%clk 0:00:15.3]}
63... b5 {[%clk 0:00:08.7]} 0-1